[Event "Titled Tuesday Blitz August 1 Early 2023"]
[White "Santos Flores, Alberto"]
[Black "Vemparala, Nikash"]
[WhiteFideId "3601234"]
[BlackFideId "30960967"]
[WhiteElo "2511"]
[BlackElo "2354"]
[Result "1-0"]
[Round "6"]
[TimeControl "180+1"]
[Date "2023.08.01"]
[WhiteClock "0:00:32"]
[BlackClock "0:00:15"]
[Board "128"]

1. e4 {[%clk 0:03:00]}  c5 {[%clk 0:02:57]} 2. Nf3 {[%clk 0:03:00]}  d6 {[%clk 0:02:56]} 3. Bb5+ {[%clk 0:03:00]}  Bd7 {[%clk 0:02:55]} 4. Bxd7+ {[%clk 0:02:59]}  Nxd7 {[%clk 0:02:55]} 5. c4 {[%clk 0:02:59]}  Ngf6 {[%clk 0:02:54]} 6. Nc3 {[%clk 0:02:59]}  g6 {[%clk 0:02:53]} 7. d4 {[%clk 0:02:59]}  cxd4 {[%clk 0:02:53]} 8. Nxd4 {[%clk 0:03:00]}  Bg7 {[%clk 0:02:53]} 9. Be3 {[%clk 0:03:00]}  O-O {[%clk 0:02:53]} 10. f3 {[%clk 0:02:59]}  Rc8 {[%clk 0:02:54]} 11. b3 {[%clk 0:02:59]}  a6 {[%clk 0:02:47]} 12. Rc1 {[%clk 0:02:57]}  Qa5 {[%clk 0:02:42]} 13. Qd2 {[%clk 0:02:56]}  Rfd8 {[%clk 0:02:40]} 14. O-O {[%clk 0:02:56]}  e6 {[%clk 0:02:35]} 15. Rfd1 {[%clk 0:02:53]}  d5 {[%clk 0:02:17]} 16. Nxd5 {[%clk 0:02:27]}  exd5 {[%clk 0:02:18]} 17. Qxa5 {[%clk 0:02:26]}  dxe4 {[%clk 0:01:52]} 18. fxe4 {[%clk 0:02:21]}  Nxe4 {[%clk 0:01:50]} 19. Nf3 {[%clk 0:02:17]}  Bf6 {[%clk 0:01:30]} 20. Bd4 {[%clk 0:02:05]}  Be7 {[%clk 0:01:16]} 21. Qe1 {[%clk 0:01:47]}  f5 {[%clk 0:01:09]} 22. Nd2 {[%clk 0:01:47]}  Ndc5 {[%clk 0:01:04]} 23. Nxe4 {[%clk 0:01:45]}  Nxe4 {[%clk 0:01:04]} 24. Be3 {[%clk 0:01:40]}  Re8 {[%clk 0:01:01]} 25. Rd7 {[%clk 0:01:38]}  Bf6 {[%clk 0:00:59]} 26. Qb4 {[%clk 0:01:31]}  Ng5 {[%clk 0:00:45]} 27. Bd4 {[%clk 0:01:24]}  Bxd4+ {[%clk 0:00:37]} 28. Rxd4 {[%clk 0:01:25]}  Ne6 {[%clk 0:00:36]} 29. Rd5 {[%clk 0:01:19]}  Nf4 {[%clk 0:00:36]} 30. Rcd1 {[%clk 0:01:12]}  Nxd5 {[%clk 0:00:33]} 31. cxd5 {[%clk 0:01:11]}  Rc2 {[%clk 0:00:29]} 32. Qh4 {[%clk 0:00:56]}  Ree2 {[%clk 0:00:25]} 33. Qg5 {[%clk 0:00:55]}  Kg7 {[%clk 0:00:20]} 34. d6 {[%clk 0:00:39]}  h6 {[%clk 0:00:19]} 35. Qg3 {[%clk 0:00:38]}  f4 {[%clk 0:00:19]} 36. Qxf4 {[%clk 0:00:32]}  Rxg2+ {[%clk 0:00:19]} 37. Kh1 {[%clk 0:00:33]}  Rcf2 {[%clk 0:00:16]} 38. Qe5+ {[%clk 0:00:33]}  Kh7 {[%clk 0:00:15]} 39. d7 {[%clk 0:00:33]}  Rd2 {[%clk 0:00:14]} 40. Rxd2 {[%clk 0:00:32]}  Rxd2 {[%clk 0:00:14]} 41. Qe7+ {[%clk 0:00:31]}  Kg8 {[%clk 0:00:15]} 42. d8=Q+ {[%clk 0:00:31]}  Rxd8 {[%clk 0:00:15]} 43. Qxd8+ {[%clk 0:00:32]} 1-0


[Site "https://www.chess.com"]

[Event "Titled Tuesday Blitz August 1 Early 2023"]
[White "Estrada Nieto, Julian"]
[Black "Antonio, Jorge Carlos"]
[WhiteFideId "5101018"]
[BlackFideId "113190"]
[WhiteElo "2507"]
[BlackElo "2325"]
[Result "1-0"]
[Round "6"]
[TimeControl "180+1"]
[Date "2023.08.01"]
[WhiteClock "0:00:18"]
[BlackClock "0:00:00"]
[Board "130"]

1. e4 {[%clk 0:03:00]}  c5 {[%clk 0:02:58]} 2. Nf3 {[%clk 0:03:01]}  e6 {[%clk 0:02:59]} 3. c3 {[%clk 0:03:00]}  Nc6 {[%clk 0:02:58]} 4. d4 {[%clk 0:02:59]}  d5 {[%clk 0:02:58]} 5. e5 {[%clk 0:02:59]}  Qb6 {[%clk 0:02:56]} 6. Be2 {[%clk 0:02:57]}  cxd4 {[%clk 0:02:56]} 7. cxd4 {[%clk 0:02:57]}  Nge7 {[%clk 0:02:54]} 8. Na3 {[%clk 0:02:53]}  h5 {[%clk 0:02:53]} 9. O-O {[%clk 0:02:52]}  Nf5 {[%clk 0:02:53]} 10. Nc2 {[%clk 0:02:51]}  Bd7 {[%clk 0:02:52]} 11. a3 {[%clk 0:02:48]}  Na5 {[%clk 0:02:50]} 12. b4 {[%clk 0:02:41]}  Nb3 {[%clk 0:02:46]} 13. Rb1 {[%clk 0:02:40]}  Nxc1 {[%clk 0:02:46]} 14. Rxc1 {[%clk 0:02:40]}  Rc8 {[%clk 0:02:46]} 15. Qd2 {[%clk 0:02:34]}  Bb5 {[%clk 0:02:43]} 16. Bxb5+ {[%clk 0:02:28]}  Qxb5 {[%clk 0:02:43]} 17. Ne3 {[%clk 0:02:29]}  Rxc1 {[%clk 0:02:34]} 18. Rxc1 {[%clk 0:02:28]}  Nxe3 {[%clk 0:02:11]} 19. Qxe3 {[%clk 0:02:19]}  Kd7 {[%clk 0:02:00]} 20. Qf4 {[%clk 0:02:11]}  Be7 {[%clk 0:01:52]} 21. Qxf7 {[%clk 0:02:05]}  Qb6 {[%clk 0:01:12]} 22. Qxg7 {[%clk 0:01:52]}  Rf8 {[%clk 0:01:05]} 23. h4 {[%clk 0:01:48]}  Rxf3 {[%clk 0:01:00]} 24. gxf3 {[%clk 0:01:44]}  Qxd4 {[%clk 0:01:00]} 25. Qh8 {[%clk 0:01:01]}  Bd8 {[%clk 0:00:53]} 26. Qh7+ {[%clk 0:00:55]}  Be7 {[%clk 0:00:53]} 27. Qxh5 {[%clk 0:00:54]}  Qb2 {[%clk 0:00:49]} 28. Rd1 {[%clk 0:00:45]}  Qxa3 {[%clk 0:00:48]} 29. f4 {[%clk 0:00:44]}  Qxb4 {[%clk 0:00:36]} 30. f5 {[%clk 0:00:44]}  a5 {[%clk 0:00:19]} 31. f6 {[%clk 0:00:38]}  Bc5 {[%clk 0:00:18]} 32. Qf7+ {[%clk 0:00:32]}  Kc6 {[%clk 0:00:16]} 33. Qxe6+ {[%clk 0:00:31]}  Kb5 {[%clk 0:00:16]} 34. Qd7+ {[%clk 0:00:29]}  Ka6 {[%clk 0:00:15]} 35. Qxd5 {[%clk 0:00:27]}  Qg4+ {[%clk 0:00:15]} 36. Kf1 {[%clk 0:00:27]}  Qh3+ {[%clk 0:00:14]} 37. Ke2 {[%clk 0:00:23]}  Qg4+ {[%clk 0:00:07]} 38. Qf3 {[%clk 0:00:23]}  Qe6 {[%clk 0:00:04]} 39. Qd3+ {[%clk 0:00:20]}  Ka7 {[%clk 0:00:00]} 40. Qd5 {[%clk 0:00:18]} 1-0


[Site "https://www.chess.com"]

[Event "Titled Tuesday Blitz August 1 Early 2023"]
[White "Ferro, Mario"]
[Black "Tikhonov, Viacheslav"]
[WhiteFideId "810290"]
[BlackFideId "44196407"]
[WhiteElo "2326"]
[BlackElo "2499"]
[Result "0-1"]
[Round "6"]
[TimeControl "180+1"]
[Date "2023.08.01"]
[WhiteClock "0:00:31"]
[BlackClock "0:00:23"]
[Board "131"]

1. d4 {[%clk 0:02:56]}  Nf6 {[%clk 0:02:57]} 2. Nf3 {[%clk 0:02:56]}  g6 {[%clk 0:02:57]} 3. g3 {[%clk 0:02:56]}  Bg7 {[%clk 0:02:57]} 4. Bg2 {[%clk 0:02:57]}  O-O {[%clk 0:02:57]} 5. O-O {[%clk 0:02:58]}  d5 {[%clk 0:02:58]} 6. c4 {[%clk 0:02:57]}  c6 {[%clk 0:02:58]} 7. cxd5 {[%clk 0:02:55]}  cxd5 {[%clk 0:02:59]} 8. Nc3 {[%clk 0:02:55]}  Ne4 {[%clk 0:02:59]} 9. Ne5 {[%clk 0:02:54]}  Nxc3 {[%clk 0:02:58]} 10. bxc3 {[%clk 0:02:55]}  Nd7 {[%clk 0:02:57]} 11. Nxd7 {[%clk 0:02:47]}  Qxd7 {[%clk 0:02:58]} 12. Ba3 {[%clk 0:02:44]}  Re8 {[%clk 0:02:56]} 13. Qb3 {[%clk 0:02:39]}  e6 {[%clk 0:02:54]} 14. e3 {[%clk 0:02:37]}  b6 {[%clk 0:02:47]} 15. c4 {[%clk 0:02:34]}  dxc4 {[%clk 0:02:27]} 16. Qxc4 {[%clk 0:02:30]}  Bb7 {[%clk 0:02:28]} 17. Rac1 {[%clk 0:02:09]}  Rac8 {[%clk 0:02:24]} 18. Qb3 {[%clk 0:01:58]}  Bxg2 {[%clk 0:02:21]} 19. Kxg2 {[%clk 0:01:58]}  h5 {[%clk 0:02:05]} 20. h3 {[%clk 0:01:43]}  Qb7+ {[%clk 0:01:55]} 21. Kg1 {[%clk 0:01:35]}  h4 {[%clk 0:01:55]} 22. g4 {[%clk 0:01:34]}  Qf3 {[%clk 0:01:53]} 23. Rxc8 {[%clk 0:01:27]}  Rxc8 {[%clk 0:01:51]} 24. Kh2 {[%clk 0:01:26]}  Qe2 {[%clk 0:01:30]} 25. Kg2 {[%clk 0:01:18]}  Rc2 {[%clk 0:01:29]} 26. Qa4 {[%clk 0:01:11]}  Rxa2 {[%clk 0:01:00]} 27. Qe8+ {[%clk 0:01:10]}  Kh7 {[%clk 0:01:01]} 28. Be7 {[%clk 0:01:06]}  Qxe3 {[%clk 0:01:00]} 29. Qxf7 {[%clk 0:00:59]}  Qg3+ {[%clk 0:01:00]} 30. Kh1 {[%clk 0:00:57]}  Qxh3+ {[%clk 0:00:59]} 31. Kg1 {[%clk 0:00:57]}  Qxg4+ {[%clk 0:01:00]} 32. Kh1 {[%clk 0:00:57]}  h3 {[%clk 0:00:43]} 33. Rg1 {[%clk 0:00:31]}  Ra1 {[%clk 0:00:23]} 0-1


[Site "https://www.chess.com"]

[Event "Titled Tuesday Blitz August 1 Early 2023"]
[White "Gardezi, Arsal"]
[Black "Brunner, Nicolas"]
[WhiteFideId "30949521"]
[BlackFideId "620246"]
[WhiteElo "2281"]
[BlackElo "2489"]
[Result "1-0"]
[Round "6"]
[TimeControl "180+1"]
[Date "2023.08.01"]
[WhiteClock "0:01:24"]
[BlackClock "0:00:01"]
[Board "132"]

1. Nf3 {[%clk 0:03:00]}  c5 {[%clk 0:02:59]} 2. e4 {[%clk 0:02:58]}  e6 {[%clk 0:02:58]} 3. c3 {[%clk 0:02:58]}  d5 {[%clk 0:02:57]} 4. exd5 {[%clk 0:02:58]}  Qxd5 {[%clk 0:02:57]} 5. d4 {[%clk 0:02:59]}  Nf6 {[%clk 0:02:57]} 6. Nbd2 {[%clk 0:02:54]}  Nc6 {[%clk 0:02:46]} 7. Bc4 {[%clk 0:02:52]}  Qd8 {[%clk 0:02:43]} 8. dxc5 {[%clk 0:02:51]}  Bxc5 {[%clk 0:02:43]} 9. O-O {[%clk 0:02:50]}  O-O {[%clk 0:02:43]} 10. Nb3 {[%clk 0:02:51]}  Bb6 {[%clk 0:02:42]} 11. Bg5 {[%clk 0:02:50]}  h6 {[%clk 0:02:36]} 12. Bh4 {[%clk 0:02:48]}  g5 {[%clk 0:02:26]} 13. Bg3 {[%clk 0:02:47]}  Ne4 {[%clk 0:02:26]} 14. Nfd4 {[%clk 0:02:44]}  Nxd4 {[%clk 0:02:23]} 15. Nxd4 {[%clk 0:02:42]}  Nxg3 {[%clk 0:02:19]} 16. hxg3 {[%clk 0:02:41]}  e5 {[%clk 0:02:17]} 17. Nf3 {[%clk 0:02:30]}  Qxd1 {[%clk 0:02:13]} 18. Raxd1 {[%clk 0:02:29]}  Bg4 {[%clk 0:02:13]} 19. Rd6 {[%clk 0:02:26]}  Bxf3 {[%clk 0:02:10]} 20. gxf3 {[%clk 0:02:25]}  Kg7 {[%clk 0:02:10]} 21. Rd7 {[%clk 0:02:24]}  Rad8 {[%clk 0:02:04]} 22. Rfd1 {[%clk 0:02:23]}  h5 {[%clk 0:01:18]} 23. b4 {[%clk 0:02:15]}  a5 {[%clk 0:01:14]} 24. R1d6 {[%clk 0:02:07]}  axb4 {[%clk 0:01:08]} 25. cxb4 {[%clk 0:02:02]}  Bc7 {[%clk 0:01:00]} 26. Rd3 {[%clk 0:01:53]}  Rc8 {[%clk 0:00:58]} 27. Bb3 {[%clk 0:01:49]}  b5 {[%clk 0:00:38]} 28. R3d5 {[%clk 0:01:45]}  h4 {[%clk 0:00:27]} 29. Rxb5 {[%clk 0:01:36]}  Bb8 {[%clk 0:00:08]} 30. Rbb7 {[%clk 0:01:34]}  h3 {[%clk 0:00:06]} 31. Rxf7+ {[%clk 0:01:32]}  Rxf7 {[%clk 0:00:06]} 32. Rxf7+ {[%clk 0:01:31]}  Kg6 {[%clk 0:00:07]} 33. Kh2 {[%clk 0:01:26]}  Rc3 {[%clk 0:00:05]} 34. Rb7 {[%clk 0:01:24]}  Bd6 {[%clk 0:00:03]} 35. Rb6 {[%clk 0:01:24]}  Rd3 {[%clk 0:00:01]} 36. Bc2 {[%clk 0:01:24]} 1-0


[Site "https://www.chess.com"]

[Event "Titled Tuesday Blitz August 1 Early 2023"]
[White "Mahdavi, Reza"]
[Black "Atanasov, Radislav"]
[WhiteFideId "12595926"]
[BlackFideId "2901471"]
[WhiteElo "2765"]
[BlackElo "2261"]
[Result "1-0"]
[Round "6"]
[TimeControl "180+1"]
[Date "2023.08.01"]
[WhiteClock "0:01:13"]
[BlackClock "0:00:00"]
[Board "134"]

1. e4 {[%clk 0:03:00]}  e5 {[%clk 0:02:59]} 2. Nf3 {[%clk 0:03:00]}  Nc6 {[%clk 0:02:58]} 3. Bb5 {[%clk 0:02:59]}  a6 {[%clk 0:02:58]} 4. Ba4 {[%clk 0:02:45]}  Nf6 {[%clk 0:02:56]} 5. O-O {[%clk 0:02:38]}  Nxe4 {[%clk 0:02:43]} 6. d4 {[%clk 0:02:35]}  b5 {[%clk 0:02:42]} 7. Bb3 {[%clk 0:02:33]}  d5 {[%clk 0:02:42]} 8. dxe5 {[%clk 0:02:33]}  Be6 {[%clk 0:02:41]} 9. c3 {[%clk 0:02:34]}  Bc5 {[%clk 0:02:37]} 10. Nbd2 {[%clk 0:02:31]}  O-O {[%clk 0:02:30]} 11. Bc2 {[%clk 0:02:31]}  Nxf2 {[%clk 0:02:29]} 12. Rxf2 {[%clk 0:02:32]}  f6 {[%clk 0:02:28]} 13. Nf1 {[%clk 0:02:32]}  Bxf2+ {[%clk 0:02:22]} 14. Kxf2 {[%clk 0:02:33]}  fxe5 {[%clk 0:02:17]} 15. Kg1 {[%clk 0:02:28]}  Bg4 {[%clk 0:02:08]} 16. Bb3 {[%clk 0:02:11]}  Bxf3 {[%clk 0:01:34]} 17. gxf3 {[%clk 0:02:10]}  Ne7 {[%clk 0:01:34]} 18. Bg5 {[%clk 0:02:08]}  c6 {[%clk 0:01:31]} 19. Qe2 {[%clk 0:02:07]}  Qd6 {[%clk 0:01:22]} 20. Bc2 {[%clk 0:02:06]}  Rae8 {[%clk 0:01:11]} 21. Re1 {[%clk 0:02:05]}  Ng6 {[%clk 0:01:04]} 22. Qg2 {[%clk 0:01:44]}  Nf4 {[%clk 0:00:45]} 23. Bxf4 {[%clk 0:01:39]}  Rxf4 {[%clk 0:00:40]} 24. Ng3 {[%clk 0:01:37]}  Qf8 {[%clk 0:00:33]} 25. Re3 {[%clk 0:01:27]}  Qc5 {[%clk 0:00:27]} 26. Qf2 {[%clk 0:01:25]}  e4 {[%clk 0:00:24]} 27. Kg2 {[%clk 0:01:20]}  Ref8 {[%clk 0:00:14]} 28. Bd1 {[%clk 0:01:16]}  exf3+ {[%clk 0:00:11]} 29. Rxf3 {[%clk 0:01:13]}  d4 {[%clk 0:00:04]} 30. Rxf4 {[%clk 0:01:13]}  Qd5+ {[%clk 0:00:04]} 31. Bf3 {[%clk 0:01:12]}  Rxf4 {[%clk 0:00:03]} 32. Bxd5+ {[%clk 0:01:12]}  cxd5 {[%clk 0:00:00]} 33. Qxf4 {[%clk 0:01:13]} 1-0


[Site "https://www.chess.com"]

[Event "Titled Tuesday Blitz August 1 Early 2023"]
[White "Csonka, Balazs"]
[Black "Stachanczyk, Jacek"]
[WhiteFideId "742910"]
[BlackFideId "1116657"]
[WhiteElo "2706"]
[BlackElo "2430"]
[Result "1-0"]
[Round "6"]
[TimeControl "180+1"]
[Date "2023.08.01"]
[WhiteClock "0:00:49"]
[BlackClock "0:00:00"]
[Board "135"]

1. d4 {[%clk 0:03:00]}  d5 {[%clk 0:02:54]} 2. c4 {[%clk 0:02:59]}  c6 {[%clk 0:02:55]} 3. Nc3 {[%clk 0:02:56]}  dxc4 {[%clk 0:02:55]} 4. e3 {[%clk 0:02:54]}  b5 {[%clk 0:02:52]} 5. a4 {[%clk 0:02:54]}  b4 {[%clk 0:02:49]} 6. Ne4 {[%clk 0:02:55]}  Qd5 {[%clk 0:02:31]} 7. Ng3 {[%clk 0:02:55]}  Nf6 {[%clk 0:02:28]} 8. Be2 {[%clk 0:02:54]}  a5 {[%clk 0:02:14]} 9. e4 {[%clk 0:02:49]}  Nxe4 {[%clk 0:02:06]} 10. Bf3 {[%clk 0:02:49]}  f5 {[%clk 0:01:52]} 11. Nh3 {[%clk 0:02:06]}  c5 {[%clk 0:01:31]} 12. O-O {[%clk 0:01:43]}  Qxd4 {[%clk 0:01:22]} 13. Qe2 {[%clk 0:01:35]}  Bb7 {[%clk 0:01:08]} 14. Rd1 {[%clk 0:01:29]}  Qf6 {[%clk 0:00:55]} 15. Nxe4 {[%clk 0:01:22]}  fxe4 {[%clk 0:00:54]} 16. Bxe4 {[%clk 0:01:22]}  Nc6 {[%clk 0:00:52]} 17. Qxc4 {[%clk 0:01:07]}  Rd8 {[%clk 0:00:29]} 18. Bg5 {[%clk 0:00:50]}  Qf7 {[%clk 0:00:00]} 19. Qb5 {[%clk 0:00:49]} 1-0


[Site "https://www.chess.com"]

[Event "Titled Tuesday Blitz August 1 Early 2023"]
[White "Fernandez Garcia, Gumersindo"]
[Black "Burmakin, Vladimir"]
[WhiteFideId "24516740"]
[BlackFideId "4105109"]
[WhiteElo "2420"]
[BlackElo "2597"]
[Result "0-1"]
[Round "6"]
[TimeControl "180+1"]
[Date "2023.08.01"]
[WhiteClock "0:00:14"]
[BlackClock "0:01:30"]
[Board "139"]

1. e4 {[%clk 0:03:00]}  c6 {[%clk 0:02:59]} 2. c4 {[%clk 0:02:59]}  d5 {[%clk 0:02:59]} 3. cxd5 {[%clk 0:03:00]}  cxd5 {[%clk 0:02:59]} 4. exd5 {[%clk 0:03:00]}  Nf6 {[%clk 0:02:59]} 5. Nc3 {[%clk 0:03:00]}  Nxd5 {[%clk 0:02:58]} 6. Nf3 {[%clk 0:02:59]}  e6 {[%clk 0:02:53]} 7. d4 {[%clk 0:02:59]}  Nxc3 {[%clk 0:02:53]} 8. bxc3 {[%clk 0:02:58]}  Qc7 {[%clk 0:02:53]} 9. Bd2 {[%clk 0:02:51]}  Be7 {[%clk 0:02:49]} 10. Bd3 {[%clk 0:02:52]}  Nd7 {[%clk 0:02:48]} 11. O-O {[%clk 0:02:51]}  O-O {[%clk 0:02:47]} 12. Rc1 {[%clk 0:02:37]}  Rd8 {[%clk 0:02:46]} 13. Qe2 {[%clk 0:02:36]}  Nf8 {[%clk 0:02:46]} 14. Ne5 {[%clk 0:02:35]}  b6 {[%clk 0:02:43]} 15. Qf3 {[%clk 0:02:31]}  Bf6 {[%clk 0:02:35]} 16. Nxf7 {[%clk 0:01:59]}  Kxf7 {[%clk 0:02:30]} 17. Qxa8 {[%clk 0:01:57]}  Bb7 {[%clk 0:02:30]} 18. Qxa7 {[%clk 0:01:57]}  Ra8 {[%clk 0:02:28]} 19. Qxa8 {[%clk 0:01:31]}  Bxa8 {[%clk 0:02:28]} 20. Rfe1 {[%clk 0:01:30]}  Bd5 {[%clk 0:02:16]} 21. a4 {[%clk 0:01:28]}  Bc4 {[%clk 0:02:15]} 22. Be4 {[%clk 0:01:28]}  Ng6 {[%clk 0:01:59]} 23. g3 {[%clk 0:01:22]}  Ne7 {[%clk 0:01:57]} 24. Bf4 {[%clk 0:01:18]}  Qd7 {[%clk 0:01:57]} 25. Rb1 {[%clk 0:01:14]}  Nd5 {[%clk 0:01:56]} 26. Bxd5 {[%clk 0:01:03]}  Bxd5 {[%clk 0:01:56]} 27. Rxb6 {[%clk 0:01:03]}  Qxa4 {[%clk 0:01:55]} 28. h4 {[%clk 0:00:54]}  Qc2 {[%clk 0:01:52]} 29. Rbb1 {[%clk 0:00:37]}  Qxc3 {[%clk 0:01:45]} 30. Be5 {[%clk 0:00:33]}  Qf3 {[%clk 0:01:44]} 31. Kf1 {[%clk 0:00:32]}  Qg2+ {[%clk 0:01:40]} 32. Ke2 {[%clk 0:00:32]}  Bxe5 {[%clk 0:01:39]} 33. dxe5 {[%clk 0:00:31]}  Bc4+ {[%clk 0:01:35]} 34. Ke3 {[%clk 0:00:29]}  Qd5 {[%clk 0:01:34]} 35. f4 {[%clk 0:00:23]}  Qd3+ {[%clk 0:01:31]} 36. Kf2 {[%clk 0:00:23]}  Bd5 {[%clk 0:01:31]} 37. Re3 {[%clk 0:00:14]}  Qxb1 {[%clk 0:01:30]} 0-1


[Site "https://www.chess.com"]

[Event "Titled Tuesday Blitz August 1 Early 2023"]
[White "brm72"]
[Black "Der_Balak_3Halak"]
[WhiteElo "2590"]
[BlackElo "2413"]
[Result "1-0"]
[Round "6"]
[TimeControl "180+1"]
[Date "2023.08.01"]
[WhiteClock "0:00:20"]
[BlackClock "0:00:07"]
[Board "142"]

1. e4 {[%clk 0:03:00]}  e5 {[%clk 0:02:59]} 2. Nf3 {[%clk 0:03:00]}  Nc6 {[%clk 0:02:59]} 3. d4 {[%clk 0:03:01]}  exd4 {[%clk 0:02:56]} 4. Nxd4 {[%clk 0:03:01]}  Bc5 {[%clk 0:02:54]} 5. Nb3 {[%clk 0:03:01]}  Bb6 {[%clk 0:02:53]} 6. Qe2 {[%clk 0:03:02]}  Nf6 {[%clk 0:02:52]} 7. e5 {[%clk 0:03:02]}  Nd5 {[%clk 0:02:50]} 8. c4 {[%clk 0:03:02]}  Ndb4 {[%clk 0:02:49]} 9. c5 {[%clk 0:03:03]}  Bxc5 {[%clk 0:02:45]} 10. Nxc5 {[%clk 0:03:04]}  Nd4 {[%clk 0:02:45]} 11. Qg4 {[%clk 0:03:04]}  Qe7 {[%clk 0:02:35]} 12. Qxg7 {[%clk 0:02:30]}  Rf8 {[%clk 0:02:33]} 13. Ne4 {[%clk 0:02:22]}  Nbc2+ {[%clk 0:02:27]} 14. Kd1 {[%clk 0:02:17]}  Nxa1 {[%clk 0:02:28]} 15. Nf6+ {[%clk 0:01:26]}  Kd8 {[%clk 0:02:27]} 16. Bh6 {[%clk 0:01:23]}  Ne6 {[%clk 0:01:55]} 17. Qxh7 {[%clk 0:01:23]}  Qc5 {[%clk 0:01:50]} 18. Nc3 {[%clk 0:01:14]}  Qxe5 {[%clk 0:01:40]} 19. Bxf8 {[%clk 0:00:52]}  Nxf8 {[%clk 0:01:36]} 20. Qxf7 {[%clk 0:00:49]}  c6 {[%clk 0:00:42]} 21. Qxf8+ {[%clk 0:00:46]}  Kc7 {[%clk 0:00:43]} 22. Bd3 {[%clk 0:00:42]}  d6 {[%clk 0:00:30]} 23. Ne8+ {[%clk 0:00:32]}  Kb6 {[%clk 0:00:24]} 24. Re1 {[%clk 0:00:21]}  Bg4+ {[%clk 0:00:24]} 25. f3 {[%clk 0:00:21]}  Qd4 {[%clk 0:00:10]} 26. Qxd6 {[%clk 0:00:20]}  Qxd6 {[%clk 0:00:10]} 27. Nxd6 {[%clk 0:00:21]}  Rd8 {[%clk 0:00:10]} 28. Nc4+ {[%clk 0:00:19]}  Kc5 {[%clk 0:00:09]} 29. Kd2 {[%clk 0:00:16]}  Bf5 {[%clk 0:00:08]} 30. Ne4+ {[%clk 0:00:17]}  Bxe4 {[%clk 0:00:07]} 31. fxe4 {[%clk 0:00:17]}  b5 {[%clk 0:00:06]} 32. Ne3 {[%clk 0:00:17]}  Kd4 {[%clk 0:00:04]} 33. Rxa1 {[%clk 0:00:17]}  Rf8 {[%clk 0:00:04]} 34. Nf5+ {[%clk 0:00:17]}  Ke5 {[%clk 0:00:04]} 35. Ke3 {[%clk 0:00:18]}  Rd8 {[%clk 0:00:04]} 36. Rc1 {[%clk 0:00:18]}  c5 {[%clk 0:00:05]} 37. Rxc5+ {[%clk 0:00:19]}  Kf6 {[%clk 0:00:06]} 38. Rxb5 {[%clk 0:00:19]}  Kg5 {[%clk 0:00:07]} 39. Ra5 {[%clk 0:00:20]}  Kg4 {[%clk 0:00:07]} 40. Rxa7 {[%clk 0:00:20]}  Rh8 {[%clk 0:00:07]} 41. Rg7+ {[%clk 0:00:20]}  Kh5 {[%clk 0:00:07]} 42. g4# {[%clk 0:00:20]} 1-0


[Site "https://www.chess.com"]

[Event "Titled Tuesday Blitz August 1 Early 2023"]
[White "Derige Kane, Yan"]
[Black "Tsyhanchuk, Stanislav"]
[WhiteFideId "20665431"]
[BlackFideId "13505130"]
[WhiteElo "2589"]
[BlackElo "2413"]
[Result "1-0"]
[Round "6"]
[TimeControl "180+1"]
[Date "2023.08.01"]
[WhiteClock "0:01:10"]
[BlackClock "0:00:24"]
[Board "143"]

1. d4 {[%clk 0:03:00]}  Nf6 {[%clk 0:02:59]} 2. c4 {[%clk 0:03:01]}  e6 {[%clk 0:02:58]} 3. Nc3 {[%clk 0:03:01]}  Bb4 {[%clk 0:02:57]} 4. e3 {[%clk 0:03:02]}  O-O {[%clk 0:02:55]} 5. Bd3 {[%clk 0:03:03]}  c5 {[%clk 0:02:54]} 6. Ne2 {[%clk 0:03:01]}  d5 {[%clk 0:02:47]} 7. O-O {[%clk 0:02:58]}  cxd4 {[%clk 0:02:47]} 8. exd4 {[%clk 0:02:58]}  dxc4 {[%clk 0:02:44]} 9. Bxc4 {[%clk 0:02:59]}  Nc6 {[%clk 0:02:42]} 10. Bg5 {[%clk 0:02:58]}  Be7 {[%clk 0:02:40]} 11. a3 {[%clk 0:02:53]}  h6 {[%clk 0:02:40]} 12. Bh4 {[%clk 0:02:52]}  a6 {[%clk 0:02:36]} 13. Rc1 {[%clk 0:02:51]}  b5 {[%clk 0:02:35]} 14. Ba2 {[%clk 0:02:50]}  Bb7 {[%clk 0:02:35]} 15. Bb1 {[%clk 0:02:49]}  Na5 {[%clk 0:02:28]} 16. Qc2 {[%clk 0:02:44]}  g6 {[%clk 0:02:28]} 17. Qd2 {[%clk 0:02:33]}  Kg7 {[%clk 0:02:23]} 18. Bg3 {[%clk 0:02:30]}  Nb3 {[%clk 0:02:22]} 19. Qe3 {[%clk 0:02:26]}  Nxc1 {[%clk 0:02:22]} 20. Rxc1 {[%clk 0:02:27]}  Rc8 {[%clk 0:02:20]} 21. Nf4 {[%clk 0:02:23]}  Nd5 {[%clk 0:02:08]} 22. Ncxd5 {[%clk 0:02:13]}  Rxc1+ {[%clk 0:02:05]} 23. Qxc1 {[%clk 0:02:14]}  Bxd5 {[%clk 0:02:04]} 24. Qc2 {[%clk 0:02:10]}  Qc8 {[%clk 0:01:53]} 25. Qd3 {[%clk 0:02:10]}  Qc4 {[%clk 0:01:49]} 26. Qe3 {[%clk 0:02:09]}  Rc8 {[%clk 0:01:44]} 27. Ne2 {[%clk 0:02:08]}  Bf6 {[%clk 0:01:38]} 28. h4 {[%clk 0:02:06]}  h5 {[%clk 0:01:32]} 29. Kh2 {[%clk 0:02:01]}  Bb7 {[%clk 0:01:29]} 30. Bd3 {[%clk 0:01:56]}  Qd5 {[%clk 0:01:28]} 31. f3 {[%clk 0:01:55]}  Rd8 {[%clk 0:01:24]} 32. Be4 {[%clk 0:01:40]}  Qd7 {[%clk 0:01:15]} 33. Be5 {[%clk 0:01:40]}  Bxe5+ {[%clk 0:01:11]} 34. dxe5 {[%clk 0:01:41]}  Bxe4 {[%clk 0:01:09]} 35. Qxe4 {[%clk 0:01:42]}  Qd3 {[%clk 0:01:08]} 36. Qf4 {[%clk 0:01:41]}  Qf5 {[%clk 0:01:01]} 37. Qe3 {[%clk 0:01:27]}  Kg8 {[%clk 0:00:57]} 38. Ng3 {[%clk 0:01:26]}  Qd3 {[%clk 0:00:55]} 39. Qg5 {[%clk 0:01:25]}  Kh7 {[%clk 0:00:38]} 40. Qf6 {[%clk 0:01:17]}  Rd7 {[%clk 0:00:36]} 41. Ne4 {[%clk 0:01:17]}  Qd4 {[%clk 0:00:29]} 42. Qg5 {[%clk 0:01:12]}  Kh8 {[%clk 0:00:25]} 43. Qh6+ {[%clk 0:01:10]}  Kg8 {[%clk 0:00:24]} 44. Nf6# {[%clk 0:01:10]} 1-0


[Site "https://www.chess.com"]